fUSD/lending_fUSD_20240301
["ID","MTS","AMOUNT","RATE_DAILY","PERIOD"]
[315915210,1709279912051,-500.0,0.00022739,2]
[315915211,1709279912079,-500.0,0.00022739,2]
[315915212,1709279912105,-500.0,0.00022739,2]
[315915213,1709279912131,-500.0,0.00022739,2]
[315915214,1709279912157,-500.0,0.00022739,2]
[315915215,1709279912185,-500.0,0.00022739,2]
[315915216,1709279912212,-500.0,0.00022739,2]
[315915217,1709279912238,-712.74,0.00022739,2]
[315915218,1709279912264,-512.30812805,0.00022739,2]
[315915219,1709279912291,-500.0,0.00022739,2]
[315915220,1709279912318,-500.0,0.00022739,2]
[315915221,1709279912345,-501.76324123,0.00022739,2]
[315915222,1709279912372,-500.0,0.00022739,2]
[315915223,1709279912399,-500.0,0.00022739,2]
[315915224,1709279912425,-500.0,0.00022739,2]
[315915225,1709279912452,-662.95,0.00022739,2]
[315915226,1709279912478,-500.0,0.00022739,2]
[315915227,1709279912505,-500.0,0.00022739,2]
[315915228,1709279912532,-500.0,0.00022739,2]
[315915229,1709279912560,-500.0,0.00022739,2]
[315915230,1709279912587,-500.0,0.00022739,2]
[315915231,1709279912615,-500.0,0.00022739,2]
[315915232,1709279912644,-500.0,0.00022739,2]
[315915233,1709279912674,-500.0,0.00022739,2]
[315915234,1709279912703,-500.0,0.00022739,2]
[315915235,1709279912731,-500.0,0.00022739,2]
[315915236,1709279912759,-934.6,0.00022739,2]
[315915237,1709279912786,-500.0,0.00022739,2]
[315915238,1709279912813,-500.0,0.00022739,2]
[315915239,1709279912843,-500.0,0.00022739,2]
[315915240,1709279912871,-500.0,0.00022739,2]
[315915241,1709279912903,-500.0,0.00022739,2]
[315915242,1709279912933,-500.0,0.00022739,2]
[315915243,1709279912961,-500.0,0.00022739,2]
[315915244,1709279912988,-500.0,0.00022739,2]
[315915245,1709279913017,-500.0,0.00022739,2]
[315915246,1709279913048,-500.0,0.00022739,2]
[315915247,1709279913416,-247.84,0.00022739,2]
[315915248,1709279913449,-500.0,0.00022739,2]
[315915249,1709279913477,-515.4260906,0.00022739,2]
[315915250,1709279913512,-500.0,0.00022739,2]
[315915251,1709279913538,-500.0,0.00022739,2]
[315915252,1709279913566,-500.0,0.00022739,2]
[315915253,1709279913594,-500.0,0.00022739,2]
[315915254,1709279913620,-259.85749602,0.00022739,2]
[315915255,1709279913647,-500.0,0.00022739,2]
[315915256,1709279913677,-500.0,0.00022739,2]
[315915257,1709279913703,-559.33,0.00022739,2]
[315915258,1709279913729,-500.0,0.00022739,2]
[315915259,1709279913755,-509.29400867,0.00022739,2]
[315915260,1709279913782,-658.86,0.00022739,2]
[315915261,1709279913809,-500.0,0.00022739,2]
[315915262,1709279913837,-500.0,0.00022739,2]
[315915263,1709279913864,-749.33,0.00022739,2]
[315915264,1709279913892,-500.0,0.00022739,2]
[315915265,1709279913920,-398.03178208,0.00022739,2]
[315915266,1709279913948,-787.23,0.00022739,2]
[315915267,1709279913977,-500.0,0.00022739,2]
[315915268,1709279914004,-284.36069783,0.00022739,2]
[315915269,1709279914030,-500.0,0.00022739,2]
[315915270,1709279914055,-500.0,0.00022739,2]
[315915271,1709279914081,-500.0,0.00022739,2]
[315915272,1709279914107,-500.0,0.00022739,2]
[315915273,1709279914133,-500.0,0.00022739,2]
[315915274,1709279914165,-503.78,0.00022739,2]
[315915275,1709279914194,-531.4,0.00022739,2]
[315915276,1709279914221,-1104.94,0.00022739,2]
[315915277,1709279914250,-500.0,0.00022739,2]
[315915278,1709279914277,-593.43,0.00022739,2]
[315915279,1709279914304,-500.0,0.00022739,2]
[315915280,1709279914331,-500.0,0.00022739,2]
[315915281,1709279914356,-500.0,0.00022739,2]
[315915282,1709279914384,-500.0,0.00022739,2]
[315915283,1709279914411,-1124.08,0.00022739,2]
[315915284,1709279914440,-500.0,0.00022739,2]
[315915285,1709279914467,-500.0,0.00022739,2]
[315915286,1709279914495,-518.78,0.00022739,2]
[315915287,1709279914521,-500.0,0.00022739,2]
[315915288,1709279914549,-500.0,0.00022739,2]
[315915289,1709279914577,-1083.57,0.00022739,2]
[315915290,1709279914605,-500.0,0.00022739,2]
[315915291,1709279914634,-500.0,0.00022739,2]
[315915292,1709279914664,-500.0,0.00022739,2]
[315915293,1709279914699,-500.0,0.00022739,2]
[315915294,1709279914731,-740.79,0.00022739,2]
[315915295,1709279914768,-590.14,0.00022739,2]
[315915296,1709279914801,-500.0,0.00022739,2]
[315915297,1709279914834,-500.0,0.00022739,2]
[315915298,1709279914868,-500.0,0.00022739,2]
[315915299,1709279914903,-500.0,0.00022739,2]
[315915300,1709279914931,-500.0,0.00022739,2]
[315915301,1709279914960,-597.69,0.00022739,2]
[315915302,1709279914989,-500.0,0.00022739,2]
[315915303,1709279915018,-500.0,0.00022739,2]
[315915304,1709279915047,-500.0,0.00022739,2]
[315915305,1709279915075,-1708.79,0.00022739,2]
[315915306,1709279915103,-840.75,0.00022739,2]
[315915307,1709279915131,-738.31,0.00022739,2]
[315915308,1709279915158,-500.0,0.00022739,2]
[315915309,1709279915188,-500.0,0.00022739,2]
[315915310,1709279915217,-500.0,0.00022739,2]
[315915311,1709279915250,-510.75,0.00022739,2]
[315915312,1709279915278,-500.0,0.00022739,2]
[315915313,1709279915305,-500.0,0.00022739,2]
[315915314,1709279915333,-478.89630058,0.00022739,2]
[315915315,1709279915360,-500.0,0.00022739,2]
[315915316,1709279915386,-500.0,0.00022739,2]
[315915317,1709279915413,-584.54,0.00022739,2]
[315915318,1709279915442,-500.0,0.00022739,2]
[315915319,1709279915469,-613.31,0.00022739,2]
[315915320,1709279915497,-500.0,0.00022739,2]
[315915321,1709279915525,-514.58,0.00022739,2]
[315915322,1709279915553,-1315.99,0.00022739,2]
[315915323,1709279915582,-500.0,0.00022739,2]
[315915324,1709279915612,-500.0,0.00022739,2]
[315915325,1709279915641,-500.0,0.00022739,2]
[315915326,1709279915671,-576.91,0.00022739,2]
[315915327,1709279915704,-500.0,0.00022739,2]
[315915328,1709279915735,-500.0,0.00022739,2]
[315915329,1709279915766,-500.0,0.00022739,2]
[315915330,1709279915796,-1046.84,0.00022739,2]
[315915331,1709279915824,-500.0,0.00022739,2]
[315915332,1709279915852,-1046.47,0.00022739,2]
[315915333,1709279915883,-500.0,0.00022739,2]
[315915334,1709279915911,-500.0,0.00022739,2]
[315915335,1709279915942,-733.52,0.00022739,2]
[315915336,1709279915971,-500.0,0.00022739,2]
[315915337,1709279916000,-500.0,0.00022739,2]
[315915338,1709279916030,-1598.62,0.00022739,2]
[315915339,1709279916064,-500.0,0.00022739,2]
[315915340,1709279916097,-500.0,0.00022739,2]
[315915341,1709279916128,-500.0,0.00022739,2]
[315915342,1709279916160,-500.0,0.00022739,2]
[315915343,1709279916256,-500.0,0.00022739,2]
[315915344,1709279916288,-853.45,0.00022739,2]
[315915345,1709279916319,-1299.81,0.00022739,2]
[315915346,1709279916348,-333.71298875,0.00022739,2]
[315915347,1709279916376,-500.0,0.00022739,2]
[315915348,1709279916405,-500.0,0.00022739,2]
[315915349,1709279916432,-500.0,0.00022739,2]
[315915350,1709279916458,-742.98,0.00022739,2]
[315915351,1709279916485,-500.0,0.00022739,2]
[315915352,1709279916513,-500.0,0.00022739,2]
[315915353,1709279916543,-4692.23,0.00022739,2]
[315915354,1709279916571,-500.0,0.00022739,2]
[315915355,1709279916599,-150.0,0.00022739,2]
[315915356,1709279916627,-1030.29,0.00022739,2]
[315915357,1709279916655,-548.11,0.00022739,2]
[315915358,1709279916686,-715.48,0.00022739,2]
[315915359,1709279916713,-8428.13,0.00022739,2]
[315915360,1709279916742,-757.19,0.00022739,2]
[315915361,1709279916770,-4755.46,0.00022739,2]
[315915362,1709279916792,-511.10563762,0.00022739,2]
[315915363,1709279916815,-500.0,0.00022739,2]
[315915364,1709279916843,-1054.74,0.00022739,2]
[315915365,1709279916870,-1518.51,0.00022739,2]
[315915366,1709279916902,-388.8,0.00022739,2]
[315915367,1709279916931,-2495.3,0.00022739,2]
[315915368,1709279916957,-500.0,0.00022739,2]
[315915369,1709279916986,-521.31,0.00022739,2]
[315915370,1709279917014,-2395.24,0.00022739,2]
[315915371,1709279917042,-542.44,0.00022739,2]
[315915372,1709279917071,-1025.36,0.00022739,2]
[315915373,1709279917097,-500.0,0.00022739,2]
[315915374,1709279917123,-500.0,0.00022739,2]
[315915375,1709279917150,-637.9,0.00022739,2]
[315915376,1709279917177,-1666.01,0.00022739,2]
[315915377,1709279917207,-930.95,0.00022739,2]
[315915378,1709279917234,-755.38,0.00022739,2]
[315915379,1709279917261,-1084.29,0.00022739,2]
[315915380,1709279917288,-500.0,0.00022739,2]
[315915381,1709279917318,-18362.14,0.00022739,2]
[315915382,1709279917344,-500.0,0.00022739,2]
[315915383,1709279917370,-500.0,0.00022739,2]
[315915384,1709279917398,-868.27,0.00022739,2]
[315915385,1709279917425,-500.0,0.00022739,2]
[315915386,1709279917453,-500.0,0.00022739,2]
[315915387,1709279917479,-500.0,0.00022739,2]
[315915388,1709279917506,-704.77,0.00022739,2]
[315915389,1709279917532,-580.88,0.00022739,2]
[315915390,1709279917559,-819.26,0.00022739,2]
[315915391,1709279917588,-500.0,0.00022739,2]
[315915392,1709279917617,-502.0,0.00022739,2]
[315915393,1709279917649,-500.0,0.00022739,2]
[315915394,1709279917682,-1791.39,0.00022739,2]
[315915395,1709279917712,-948.55,0.00022739,2]
[315915396,1709279917743,-500.0,0.00022739,2]
[315915397,1709279917772,-507.16,0.00022739,2]
[315915398,1709279917801,-2426.78,0.00022739,2]
[315915399,1709279917829,-500.0,0.00022739,2]
[315915400,1709279917855,-1008.09,0.00022739,2]
[315915401,1709279917884,-1035.13,0.00022739,2]
[315915402,1709279917911,-805.79,0.00022739,2]
[315915403,1709279917941,-794.46,0.00022739,2]
[315915404,1709279917967,-689.44,0.00022739,2]
[315915405,1709279917995,-500.0,0.00022739,2]
[315915406,1709279918022,-500.0,0.00022739,2]
[315915407,1709279918051,-1642.56,0.00022739,2]
[315915408,1709279918270,-500.0,0.00022739,2]
[315915409,1709279918301,-500.0,0.00022739,2]
[315915410,1709279918330,-500.0,0.00022739,2]
[315915411,1709279918358,-500.0,0.00022739,2]
[315915412,1709279918384,-500.0,0.00022739,2]
[315915413,1709279918413,-1850.88,0.00022739,2]
[315915414,1709279918442,-5500.4,0.00022739,2]
[315915415,1709279918469,-1588.61,0.00022739,2]
[315915416,1709279918496,-500.0,0.00022739,2]
[315915417,1709279918533,-2288.48,0.00022739,2]
[315915418,1709279918563,-500.0,0.00022739,2]
[315915419,1709279918590,-1097.13,0.00022739,2]
[315915420,1709279918617,-736.53,0.00022739,2]
[315915421,1709279918644,-500.0,0.00022739,2]
[315915422,1709279918676,-500.0,0.00022739,2]
[315915423,1709279918702,-988.17,0.00022739,2]
[315915424,1709279918729,-1067.98,0.00022739,2]
[315915425,1709279918756,-521.0,0.00022739,2]
[315915426,1709279918785,-598.17,0.00022739,2]
[315915427,1709279918812,-500.0,0.00022739,2]
[315915428,1709279918840,-4129.64,0.00022739,2]
[315915429,1709279918867,-526.27,0.00022739,2]
[315915430,1709279918895,-401.0571564,0.00022739,2]
[315915431,1709279918923,-3064.84,0.00022739,2]
[315915432,1709279918949,-500.0,0.00022739,2]
[315915433,1709279918978,-500.0,0.00022739,2]
[315915434,1709279919004,-500.0,0.00022739,2]
[315915435,1709279919031,-500.0,0.00022739,2]
[315915436,1709279919057,-500.0,0.00022739,2]
[315915437,1709279919084,-531.93,0.00022739,2]
[315915438,1709279919110,-1906.33,0.00022739,2]
[315915439,1709279919137,-500.0,0.00022739,2]
[315915440,1709279919163,-500.0,0.00022739,2]
[315915441,1709279919190,-904.34,0.00022739,2]
[315915442,1709279919217,-4825.89,0.00022739,2]
[315915443,1709279919244,-500.0,0.00022739,2]
[315915444,1709279919275,-553.76,0.00022739,2]
[315915445,1709279919301,-500.0,0.00022739,2]
[315915446,1709279919326,-874.53,0.00022739,2]
[315915447,1709279919352,-495.95462472,0.00022739,2]
[315915448,1709279919378,-1462.58,0.00022739,2]
[315915449,1709279919404,-1332.17,0.00022739,2]
[315915450,1709279919432,-500.0,0.00022739,2]
[315915451,1709279919457,-500.0,0.00022739,2]
[315915452,1709279919485,-778.89,0.00022739,2]
[315915453,1709279919510,-500.0,0.00022739,2]
[315915454,1709279919537,-2081.99,0.00022739,2]
[315915455,1709279919563,-946.61,0.00022739,2]
[315915456,1709279919591,-500.0,0.00022739,2]
[315915457,1709279919618,-500.0,0.00022739,2]
[315915458,1709279919649,-500.0,0.00022739,2]
[315915459,1709279919678,-1157.49,0.00022739,2]
[315915460,1709279919707,-500.0,0.00022739,2]
[315915461,1709279919735,-500.0,0.00022739,2]
[315915462,1709279919765,-1134.34,0.00022739,2]
[315915463,1709279919794,-1774.87,0.00022739,2]
[315915464,1709279919822,-500.0,0.00022739,2]
[315915465,1709279919850,-500.0,0.00022739,2]
[315915466,1709279919880,-500.0,0.00022739,2]
[315915467,1709279919913,-6407.82,0.00022739,2]
[315915468,1709279919944,-500.0,0.00022739,2]
[315915469,1709279919972,-578.21,0.00022739,2]
[315915470,1709279919999,-500.0,0.00022739,2]
[315915471,1709279920027,-580.49,0.00022739,2]
[315915472,1709279920055,-500.0,0.00022739,2]
[315915473,1709279920085,-653.19,0.00022739,2]
[315915474,1709279920112,-1297.84,0.00022739,2]
[315915475,1709279920140,-559.85,0.00022739,2]
[315915476,1709279920167,-500.0,0.00022739,2]
[315915477,1709279920198,-500.0,0.00022739,2]
[315915478,1709279920226,-1975.25,0.00022739,2]
[315915479,1709279920254,-500.0,0.00022739,2]
[315915480,1709279920282,-500.0,0.00022739,2]
[315915481,1709279920310,-1764.33,0.00022739,2]
[315915482,1709279920339,-798.38,0.00022739,2]
[315915483,1709279920368,-1110.29,0.00022739,2]
[315915484,1709279920397,-500.0,0.00022739,2]
[315915485,1709279920426,-263.61540762,0.00022739,2]
[315915486,1709279920454,-500.0,0.00022739,2]
[315915487,1709279920483,-500.0,0.00022739,2]
[315915488,1709279920511,-500.0,0.00022739,2]
[315915489,1709279920539,-647.52,0.00022739,2]
[315915490,1709279920568,-500.0,0.00022739,2]
[315915491,1709279920597,-1731.33,0.00022739,2]
[315915492,1709279920626,-956.0,0.00022739,2]
[315915493,1709279920655,-500.0,0.00022739,2]
[315915494,1709279920684,-1156.72,0.00022739,2]
[315915495,1709279920713,-500.0,0.00022739,2]
[315915496,1709279920742,-930.7,0.00022739,2]
[315915497,1709279920770,-500.0,0.00022739,2]
[315915498,1709279920800,-500.0,0.00022739,2]
[315915499,1709279920830,-949.8,0.00022739,2]
[315915500,1709279920859,-500.0,0.00022739,2]
[315915501,1709279920890,-500.0,0.00022739,2]
[315915502,1709279920921,-557.23,0.00022739,2]
[315915503,1709279920951,-577.07,0.00022739,2]
[315915504,1709279920983,-2745.02,0.00022739,2]
[315915505,1709279921017,-1801.74,0.00022739,2]
[315915506,1709279921049,-500.0,0.00022739,2]
[315915507,1709279921082,-4280.81,0.00022739,2]
[315915508,1709279921113,-500.0,0.00022739,2]
[315915509,1709279921142,-675.47,0.00022739,2]
[315915510,1709279921174,-697.74,0.00022739,2]
[315915511,1709279921207,-500.0,0.00022739,2]
[315915512,1709279921237,-515.27321445,0.00022739,2]
[315915513,1709279921268,-801.14,0.00022739,2]
[315915514,1709279921299,-500.0,0.00022739,2]
[315915515,1709279921327,-500.0,0.00022739,2]
[315915516,1709279921357,-8618.93,0.00022739,2]
[315915517,1709279921389,-1411.02,0.00022739,2]
[315915518,1709279921420,-1263.48,0.00022739,2]
[315915519,1709279921452,-500.0,0.00022739,2]
[315915520,1709279921482,-500.0,0.00022739,2]
[315915521,1709279921516,-500.0,0.00022739,2]
[315915522,1709279921545,-967.9,0.00022739,2]
[315915523,1709279921575,-1397.73,0.00022739,2]
[315915524,1709279921610,-505.11,0.00022739,2]
[315915525,1709279921643,-500.0,0.00022739,2]
[315915526,1709279921674,-516.74,0.00022739,2]
[315915527,1709279921709,-1844.61,0.00022739,2]
[315915528,1709279921741,-1317.7,0.00022739,2]
[315915529,1709279921774,-500.0,0.00022739,2]
[315915530,1709279921807,-500.0,0.00022739,2]
[315915531,1709279921841,-500.0,0.00022739,2]
[315915532,1709279921875,-500.0,0.00022739,2]
[315915533,1709279921913,-3242.02,0.00022739,2]
[315915534,1709279921947,-827.0,0.00022739,2]
[315915535,1709279921979,-500.0,0.00022739,2]
[315915536,1709279922010,-500.0,0.00022739,2]
[315915537,1709279922042,-506.35,0.00022739,2]
[315915538,1709279922076,-500.0,0.00022739,2]
[315915539,1709279922108,-999.45,0.00022739,2]
[315915540,1709279922141,-1654.28,0.00022739,2]
[315915541,1709279922177,-1688.4,0.00022739,2]
[315915542,1709279922209,-2187.63,0.00022739,2]
[315915543,1709279922239,-500.0,0.00022739,2]
[315915544,1709279922269,-500.0,0.00022739,2]
[315915545,1709279922298,-291.86,0.0002274,2]
[315915546,1709279922328,-150.0,0.00022783,2]
[315915547,1709279922359,-9058.20356252,0.00022786,2]
[315915548,1709279922390,-155.34,0.00022794,2]
[315915549,1709279922419,-668.03055675,0.00022798,2]
[315915550,1709279922453,-71218.38479251,0.00022799,2]
[315915551,1709279922482,-17369.10983876,0.00022799,2]
[315915552,1709279922512,-151.0,0.00022799,7]
[315915553,1709279922543,-231.337517,0.00022799,7]
[315915554,1709279922572,-151.0,0.00022799,7]
[315915555,1709279922602,-993.33,0.000228,2]
[315915556,1709279922631,-164.8281048,0.000228,2]
[315915557,1709279922669,-137966.66679041,0.000228,2]
[315915558,1709279922703,-22715.24380285,0.000228,2]
[315915559,1709279922732,-787.22,0.000228,2]
[315915560,1709279922764,-152.56,0.0002282,2]
[315915561,1709279922795,-1023.55,0.00022821,2]
[315915562,1709279922825,-711.86,0.00022821,2]
[315915563,1709279922856,-10360.8,0.00022821,2]
[315915564,1709279922886,-1157.82,0.00022821,2]
[315915565,1709279922917,-630.32,0.00022821,2]
[315915566,1709279922950,-606.85,0.00022821,2]
[315915567,1709279922981,-532.91,0.00022821,2]
[315915568,1709279923013,-822.2,0.00022821,2]
[315915569,1709279923043,-2222.03,0.00022821,2]
[315915570,1709279923072,-519.26,0.00022821,2]
[315915571,1709279923103,-775.64,0.00022821,2]
[315915572,1709279923140,-9808.77,0.00022821,2]
[315915573,1709279923170,-8204.62,0.00022821,2]
[315915574,1709279923204,-969.82,0.00022823,2]
[315915575,1709279923235,-967.44,0.00022823,2]
[315915576,1709279923264,-1673.05,0.00022823,2]
[315915577,1709279923293,-987.82,0.00022823,2]
[315915578,1709279923326,-2141.37,0.00022823,2]
[315915579,1709279923355,-506.84,0.00022823,2]
[315915580,1709279923385,-2114.77,0.00022823,2]
[315915581,1709279923414,-1212.8,0.00022823,2]
[315915582,1709279923445,-1746.24,0.00022823,2]
[315915583,1709279923474,-3607.32,0.00022823,2]
[315915584,1709279923503,-1462.72,0.00022823,2]
[315915585,1709279923534,-1929.71,0.00022823,2]
[315915586,1709279923563,-653.35991549,0.00022835,2]
[315915587,1709279923594,-1269.61,0.00022841,2]
[315915588,1709279923624,-192.52,0.00022841,2]
[315915589,1709279923654,-159.15,0.00022857,2]
[315915590,1709279923684,-157.01,0.00022857,2]
[315915591,1709279923712,-5103.35863583,0.00022879,2]
[315915592,1709279923741,-575.77253566,0.00022913,2]
[315915593,1709279923771,-5849.40772672,0.00022913,2]
[315915594,1709279923802,-458.6490632,0.00022913,2]
[315915595,1709279923833,-268.1449474,0.00022913,2]
[315915596,1709279923866,-158.5323698,0.00022913,2]
[315915597,1709279923901,-9058.20356252,0.0002292,2]
[315915598,1709279923932,-653.35991549,0.00022933,2]
[315915599,1709279923963,-155.34,0.00022941,2]
[315915600,1709279923995,-79889.29265364,0.00022949,2]
[315915601,1709279924026,-152.56,0.00022949,2]
[315915602,1709279924056,-2000.0,0.00022952,2]
[315915603,1709279924086,-200.0,0.00022952,2]
[315915604,1709279924117,-1269.61,0.00022956,2]
[315915605,1709279924147,-192.52,0.00022956,2]
[315915606,1709279924177,-500.0,0.00022973,2]
[315915607,1709279924211,-500.0,0.00022981,2]
[315915608,1709279924243,-200.0,0.00022987,2]
[315915609,1709279924272,-500.0,0.0002299,2]
[315915610,1709279924302,-1000.0,0.00022999,2]
[315915611,1709279924928,-1000.0,0.00022999,2]
[315915612,1709279924975,-1000.0,0.00022999,2]
[315915613,1709279925009,-20000.0,0.00023,2]
[315915614,1709279925042,-3000.0,0.00023,2]
[315915615,1709279925073,-356.5110879,0.00023,24]
[315915616,1709279925103,-1608.81,0.00023,2]
[315915617,1709279925134,-114175.33690121,0.00023,2]
[315915618,1709279925163,-1000.0,0.00023,2]
[315915619,1709279925201,-499.99999999,0.00023,3]
[315915620,1709279925231,-159.13392921,0.00023,2]
[315915621,1709279925259,-1000.0,0.00023,2]
[315915622,1709279925294,-1000.0,0.00023,2]
[315915623,1709279925322,-1000.0,0.00023,2]
[315915624,1709279925350,-7328.1082,0.00023,2]
[315915625,1709279925378,-3012.0,0.00023,7]
[315915626,1709279925406,-1080546.16328958,0.00023,2]
[315915627,1709279925984,500.0,0.00021917,2]
[315915628,1709279926048,500.0,0.00022191,2]
[315915629,1709279926117,500.0,0.00022465,2]
[315915630,1709279926202,500.0,0.00022739,2]
[315915631,1709279926244,787.71,0.00021917,2]
[315915632,1709279926354,787.71,0.00022191,2]
[315915633,1709279926404,787.71,0.00022465,2]
[315915634,1709279926465,787.71,0.00022739,2]
[315915635,1709279926505,4800.27,0.00022549,2]
[315915636,1709279926642,1159.57621321,0.00022449,3]
[315915637,1709279926713,4800.27,0.00022823,2]
[315915638,1709279926956,123851.10980766,0.000228,4]
[315915639,1709279927403,429.49256228,0.00022905,2]
[315915640,1709279927953,500.0,0.00022549,2]
[315915641,1709279927987,500.0,0.00022823,2]
[315915642,1709279928203,155.0,0.00022738,2]
[315915643,1709279928247,500.0,0.00021917,2]
[315915644,1709279928286,500.0,0.00022191,2]
[315915645,1709279928324,500.0,0.00022465,2]
[315915646,1709279928406,500.0,0.00022739,2]
[315915647,1709279928541,437.33609476,0.00022738,2]
[315915648,1709279928683,12441.63085894,0.00022737,2]
[315915649,1709279928721,500.0,0.00021917,2]
[315915650,1709279928850,500.0,0.00021917,2]
[315915651,1709279928891,500.0,0.00022191,2]
[315915652,1709279928931,500.0,0.00022191,2]
[315915653,1709279928966,500.0,0.00022465,2]
[315915654,1709279929007,500.0,0.00022465,2]
[315915655,1709279929046,500.0,0.00022739,2]
[315915656,1709279929089,500.0,0.00022739,2]
[315915657,1709279929699,500.0,0.00021999,2]
[315915658,1709279929865,500.0,0.00021917,2]
[315915659,1709279929995,500.0,0.00022273,2]
[315915660,1709279930183,500.0,0.00022191,2]
[315915661,1709279930287,500.0,0.00022547,2]
[315915662,1709279930414,500.0,0.00021917,2]
[315915663,1709279930554,2223.46,0.00022194,2]
[315915664,1709279930667,500.0,0.00022821,2]
[315915665,1709279930706,500.0,0.00022191,2]
[315915666,1709279930801,500.0,0.00022465,2]
[315915667,1709279930974,500.0,0.00022465,2]
[315915668,1709279931085,500.0,0.00022739,2]
[315915669,1709279931244,500.0,0.00021917,2]
[315915670,1709279931281,500.0,0.00022739,2]
[315915671,1709279931431,2079.41,0.00021917,2]
[315915672,1709279931531,500.0,0.00022191,2]
[315915673,1709279931716,2079.41,0.00022191,2]
[315915674,1709279931794,500.0,0.00022465,2]
[315915675,1709279932039,500.0,0.00022739,2]
[315915676,1709279932221,2079.41,0.00022465,2]
[315915677,1709279932488,2079.41,0.00022739,2]
[315915678,1709279933445,1265.42,0.00022549,2]
[315915679,1709279933727,1265.42,0.00022823,2]
[315915680,1709279935545,500.0,0.00021917,2]
[315915681,1709279936398,500.0,0.00022191,2]
[315915682,1709279936447,500.0,0.00022465,2]
[315915683,1709279936486,753.62,0.00021917,2]
[315915684,1709279936532,500.0,0.00022739,2]
[315915685,1709279936575,753.62,0.00022191,2]
[315915686,1709279936660,500.0,0.00021917,2]
[315915687,1709279936854,753.62,0.00022465,2]
[315915688,1709279936936,500.0,0.00022191,2]
[315915689,1709279937122,753.62,0.00022739,2]
[315915690,1709279937214,500.0,0.00022465,2]
[315915691,1709279937480,500.0,0.00022739,2]
[315915692,1709279938124,500.0,0.00021917,2]
[315915693,1709279938414,500.0,0.00022191,2]
[315915694,1709279938918,500.0,0.00022465,2]
[315915695,1709279939174,500.0,0.00022739,2]
[315915696,1709279940022,500.0,0.00021917,2]
[315915697,1709279940152,1492.83,0.00021917,2]
[315915698,1709279940290,500.0,0.00022191,2]
[315915699,1709279940550,1492.83,0.00022191,2]
[315915700,1709279940589,500.0,0.00022465,2]
[315915701,1709279940807,1492.83,0.00022465,2]
[315915702,1709279940845,500.0,0.00022739,2]
[315915703,1709279941058,1492.83,0.00022739,2]
[315915704,1709279941160,1996.04,0.00021917,2]
[315915705,1709279941426,1996.04,0.00022191,2]
[315915706,1709279941749,1996.04,0.00022465,2]
[315915707,1709279942021,1996.04,0.00022739,2]
[315915708,1709279942254,500.0,0.00021917,2]
[315915709,1709279942527,500.0,0.00022191,2]